[Event "FIDE Candidates 2026"]
[White "Caruana,Fabiano"]
[Black "Sindarov,Javokhir"]
[Site "Agios Georgios Pegeia"]
[Round "11.1"]
[Annotator "TA"]
[Result "1/2-1/2"]
[Date "2026.04.11"]
[WhiteElo "2795"]
[BlackElo "2745"]
[PlyCount "115"]
[TimeControl "60"]

{[%evp 19,114,39,39,0,0,0,0,0,0,20,4,0,0,0,3,-13,-2,-12,0,0,0,0,0,0,0,0,13,10,75,75,67,76,74,74,68,68,64,58,63,72,92,72,95,94,96,107,98,103,119,82,137,114,117,110,111,121,130,130,131,126,117,76,109,8,18,8,8,8,8,8,8,8,13,64,64,74,161,8,25,8,68,68,68,68,68,68,68,68,69,69,69,69,69,8,8,8,8]} 1. Nf3 {[%emt 0:0:4]} d5 {[%emt 0:0:10]} 2. c4 {[%emt 0:0:3]} e6 {[%emt 0:0:6]} 3. g3 {[%emt 0:0:4]} Nf6 {[%emt 0:0:6]} 4. Bg2 {[%emt 0:0:3]} Be7 {[%emt 0:0:8]} 5. O-O {[%emt 0:0:6]} O-O {[%emt 0:0:6]} 6. d4 {[%emt 0:0:4]} dxc4 {[%emt 0:0:5]} 7. Ne5 {[%emt 0:0:18]} Nc6 {[%emt 0:0:15]} 8. Bxc6 {[%emt 0:0:6]} bxc6 {[%emt 0:0:5]} 9. Nxc6 {[%emt 0:0:4]} Qe8 {[%emt 0:0:7]} 10. Nxe7+ {[%emt 0:0:4]} Qxe7 {[%emt 0:0:5]} 11. Be3 {[%emt 0:0:26] E05: Open Catalan: 5 Nf3 Be7.} Nd5 {[%emt 0:0:54]} 12. Qc1 {[%emt 0:0:32]} Rb8 {[%emt 0:0:39]} 13. Nc3 {[%emt 0:0:9]} Nxe3 {[%emt 0:1:24]} 14. Qxe3 {[%emt 0:0:6]} Rxb2 {[%emt 0:0:6]} 15. Rab1 $146 {[%emt 0:0:14]} ({Predecessor:} 15. Rfb1 Rb6 16. Nd5 Rxb1+ 17. Rxb1 Qd6 18. Nc3 h6 19. Rb5 Rd8 20. Rc5 Bb7 21. f3 {0-1 Theodorou,N (2646)-Eljanov,P (2682) Bundesliga 2526 2025 (6.1)} )Rxb1 {[%emt 0:0:28]} 16. Rxb1 {[%emt 0:0:5][%cal Bf1b1,Bb1b7,Bb7c7,Bc7c5][%mdl 32]} a6 {[%emt 0:0:8]} 17. f3 {[%emt 0:5:47]} Bd7 {[%emt 0:14:4]} 18. Kf2 {[%emt 0:7:59]} Bc6 {[%emt 0:11:37]} 19. d5 {[%emt 0:8:39]} Bd7 {[%emt 0:0:26]} 20. Rb7 {[%emt 0:0:25]} Qd6 {[%emt 0:6:0]} 21. Ne4 {[%emt 0:6:52]} Qxd5 {[%emt 0:5:53]} 22. Rxc7 {[%emt 0:0:21]} e5 {[%emt 0:14:43]} 23. Qc5 {[%emt 0:11:24]} Be6 {[%emt 0:3:11]} (23... Qxc5+ $11 24. Nxc5 Bc8 )24. Qxd5 $16 {[%emt 0:5:17]} Bxd5 {[%emt 0:0:10][%mdl 4096] Endgame KRB-KRN. Black is a pawn up.} 25. Nc3 {[%emt 0:0:5] White is more active.} Be6 {[%emt 0:0:9]} 26. Rc5 {[%emt 0:4:16]} f6 {[%emt 0:1:52]} 27. Rc6 {[%emt 0:0:13][%csl LRa6,LRe6]} Kf7 {[%emt 0:0:6]} 28. Rxa6 {[%emt 0:0:5]} Rb8 {[%emt 0:0:5]} 29. Ra7+ {[%emt 0:0:25]} Kg6 {[%emt 0:13:3]} 30. Re7 {[%emt 0:2:17]} Rb6 {[%emt 0:2:24]} 31. g4 {[%emt 0:5:14][%cal Bg3g4,Bg4h5][%mdl 32]} h5 {[%emt 0:2:0]} 32. gxh5+ {[%emt 0:1:4]} Kh6 {[%emt 0:0:6]} 33. Ke1 {[%emt 0:0:4]} Bf5 {[%emt 0:9:34]} 34. Rc7 {[%emt 0:6:23]} Be6 {[%emt 0:12:16]} (34... Ra6 $142 )35. Kd2 {[%emt 0:3:45]} Rd6+ {[%emt 0:0:52]} 36. Kc2 {[%emt 0:4:4]} Rd7 {[%emt 0:1:29]} 37. Rc6 {[%emt 0:3:57]} Bf7 {[%emt 0:0:23]} 38. a4 {[%emt 0:11:51]} Ra7 {[%emt 0:0:15]} 39. Kb2 {[%emt 0:5:1]} Kxh5 {[%emt 0:8:17]} 40. Ka3 {[%emt 0:0:0]} Rb7 {[%emt 0:0:0]} 41. Nb5 {[%emt 0:0:33]} Kg5 {[%emt 0:7:58]} 42. Rc5 {[%emt 0:38:57]} Kf4 {[%emt 0:2:38]} 43. a5 {[%emt 0:0:6][%cal Ba4a5,Ba5a6,Ba6a7][%mdl 32]} Ke3 {[%emt 0:1:31]} 44. a6 {[%emt 0:2:54]} Rb6 {[%emt 0:0:17]} 45. a7 {[%emt 0:0:2]} Ra6+ {[%emt 0:0:6]} 46. Kb4 {[%emt 0:0:2]} Be8 {[%emt 0:0:9] Repels Rc6} 47. Rc7 {[%emt 0:0:54]} (47. Rxc4 Bxb5 (47... Kxe2 48. Rc7 $16 )48. Re4+ Kf2 49. Kxb5 Rxa7 $19 )Kxe2 {[%emt 0:6:11]} (47... Bxb5 $16 {was necessary.} 48. Kxb5 Ra1 )48. Nc3+ $2 {[%emt 0:0:55] [#]} (48. Rxc4 $2 {loses.} Bxb5 49. Kxb5 Rxa7 $19 )({Worse is} 48. Kxc4 Ra4+ 49. Kc5 Ra5 $14 (49... Kxf3 50. Nd6 $16 ))({Better is} 48. Rxg7 $18 Bxb5 49. Kxb5 )Kxf3 $11 {[%emt 0:3:56]} 49. Rxg7 {[%emt 0:0:3]} e4 {[%emt 0:5:20]} (49... f5 $11 )50. Re7 $14 {[%emt 0:7:45]} f5 {[%emt 0:2:9]} 51. Rxe8 {[%emt 0:0:19]} Rxa7 {[%emt 0:0:6] KRN-KR} 52. Rf8 {[%emt 0:0:16]} Rh7 {[%emt 0:0:57]} 53. Rxf5+ {[%emt 0:0:6]} Kg2 {[%emt 0:0:5]} 54. Nxe4 {[%emt 0:0:15]} Kxh2 {[%emt 0:0:12]} 55. Nf6 {[%emt 0:0:5]} Rc7 {[%emt 0:0:16]} 56. Rc5 {[%emt 0:0:23]} (56. Nd5 $14 Rb7+ 57. Kxc4 )Rxc5 $11 {[%emt 0:0:4]} 57. Kxc5 {[%emt 0:0:2]} c3 {[%emt 0:0:6]} 58. Ng4+ {[%emt 0:0:3] Weighted Error Value: White=0.13 (very precise) /Black=0.11 (very precise)   Mistake:       	White=2     	Black=4      Inaccurate:     	White=3     	Black=1      OK:         	White=6     	Black=9      Best:        	White=3     	---} 1/2-1/2

[Event "FIDE Candidates 2026"]
[White "Giri,Anish"]
[Black "Esipenko,Andrey"]
[Site "Agios Georgios Pegeia"]
[Round "11.2"]
[Annotator "TA"]
[Result "1/2-1/2"]
[Date "2026.04.11"]
[WhiteElo "2753"]
[BlackElo "2698"]
[PlyCount "85"]
[TimeControl "60"]

{[%evp 19,84,37,34,17,30,37,32,30,22,29,28,23,29,25,32,15,19,35,33,24,50,50,58,58,61,41,47,42,52,48,57,58,67,67,75,68,79,67,70,78,73,77,74,50,57,33,28,33,37,44,32,37,39,20,27,21,21,22,20,0,0,0,8,0,0,0,0]} 1. d4 {[%emt 0:0:2]} d5 {[%emt 0:0:14]} 2. c4 {[%emt 0:0:8]} e6 {[%emt 0:0:5]} 3. Nc3 {[%emt 0:0:16]} Be7 {[%emt 0:0:9]} 4. cxd5 {[%emt 0:0:20]} exd5 {[%emt 0:0:7]} 5. Bf4 {[%emt 0:0:3]} Nf6 {[%emt 0:0:23]} 6. e3 {[%emt 0:0:12]} O-O {[%emt 0:0:26]} 7. Nf3 {[%emt 0:0:16]} c5 {[%emt 0:0:29]} 8. dxc5 {[%emt 0:0:55]} Bxc5 {[%emt 0:0:9]} 9. Be2 {[%emt 0:0:5]} Nc6 {[%emt 0:0:9]} 10. O-O {[%emt 0:0:7]} Be6 {[%emt 0:0:9]} 11. Qa4 {[%emt 0:1:12] D37: Queen's Gambit Declined: 5 Bf4.} h6 {[%emt 0:17:52]} 12. Rfd1 $146 {[%emt 0:2:9]} ({Predecessor:} 12. h3 Qe7 13. Rfd1 a6 14. Rac1 Rfc8 15. Qc2 Na5 16. Qb1 Nc4 17. Nd4 b5 18. Bf3 {1-0 Cadena Montoya,G (2051)-Mateus,M (2144) Pan American Continental 2010 (9)} )Qb6 {[%emt 0:7:14]} 13. Qb5 {[%emt 0:9:14] White is slightly better.} a6 {[%emt 0:8:31]} 14. Qxb6 {[%emt 0:1:30]} Bxb6 {[%emt 0:0:6]} 15. Na4 {[%emt 0:16:10]} Ba7 {[%emt 0:1:11]} 16. Bd6 {[%emt 0:0:20]} Rfc8 {[%emt 0:1:6]} 17. Bc5 {[%emt 0:3:3]} Bxc5 {[%emt 0:11:12]} 18. Nxc5 {[%emt 0:0:4]} Ne5 {[%emt 0:1:6]} 19. Rac1 {[%emt 0:12:26]} Ned7 {[%emt 0:7:15]} 20. Nd3 {[%emt 0:12:22]} Kf8 {[%emt 0:1:15]} 21. Nd4 {[%emt 0:0:46]} Ke7 {[%emt 0:0:54]} 22. f3 {[%emt 0:3:43] White is more active.} Ne8 {[%emt 0:2:35][%cal Bf6e8,Be8d6,Bd6c4][%mdl 32]} 23. Kf2 {[%emt 0:8:56]} Nd6 {[%emt 0:2:45]} 24. g4 {[%emt 0:4:9]} g5 {[%emt 0:13:25] [#]} 25. h4 $1 {[%emt 0:0:48]} Nc4 {[%emt 0:16:34]} (25... Rab8 26. hxg5 )26. Rh1 {[%emt 0:5:36]} Nce5 {[%emt 0:0:45]} 27. Nxe5 {[%emt 0:3:5]} Nxe5 {[%emt 0:0:6]} 28. Rcd1 {[%emt 0:0:13]} Rh8 {[%emt 0:5:31]} 29. Kg3 {[%emt 0:7:38]} Nc6 {[%emt 0:2:28]} 30. Nxe6 {[%emt 0:3:15]} fxe6 {[%emt 0:3:8]} 31. f4 {[%emt 0:2:41]} Rag8 {[%emt 0:3:27]} 32. fxg5 {[%emt 0:3:16]} hxg5 {[%emt 0:0:4]} 33. hxg5 {[%emt 0:0:12]} Ne5 {[%emt 0:0:39]} 34. Rxh8 {[%emt 0:7:49]} Rxh8 $14 {[%emt 0:0:2][%mdl 4096] Endgame KRB-KRN. White is a pawn up.} 35. e4 {[%emt 0:0:8]} dxe4 {[%emt 0:0:13]} 36. Rd4 {[%emt 0:1:18]} Rg8 {[%emt 0:0:59]} 37. Rb4 {[%emt 0:1:0]} b5 {[%emt 0:0:44] The position is equal.} 38. Rxe4 {[%emt 0:0:41]} Rxg5 {[%emt 0:0:45]} 39. a4 {[%emt 0:0:10]} Nf7 {[%emt 0:0:46]} 40. axb5 {[%emt 0:0:0]} axb5 {[%emt 0:0:0]} 41. Rd4 {[%emt 0:3:40]} Nd6 {[%emt 0:0:49]} 42. Kf2 {[%emt 0:0:40]} Rc5 {[%emt 0:1:15]} 43. Ke3 {[%emt 0:0:21] Weighted Error Value: White=0.05 (flawless) /Black=0.03 (flawless)   Inaccurate:     	---       	Black=1      OK:         	White=7     	Black=9} 1/2-1/2

[Event "FIDE Candidates 2026"]
[White "Nakamura,Hikaru"]
[Black "Wei,Yi"]
[Site "Agios Georgios Pegeia"]
[Round "11.3"]
[Annotator "TA"]
[Result "1/2-1/2"]
[Date "2026.04.11"]
[WhiteElo "2810"]
[BlackElo "2754"]
[PlyCount "44"]
[TimeControl "60"]

{[%evp 23,43,16,17,10,26,25,15,25,43,43,40,21,45,0,14,-18,0,0,18,-8,0,0]} 1. Nf3 {[%emt 0:0:5]} Nf6 {[%emt 0:0:23]} 2. c4 {[%emt 0:0:15]} e6 {[%emt 0:0:11]} 3. g3 {[%emt 0:0:9]} d5 {[%emt 0:0:6]} 4. Bg2 {[%emt 0:0:4]} Be7 {[%emt 0:0:8]} 5. O-O {[%emt 0:0:6]} O-O {[%emt 0:0:5]} 6. d4 {[%emt 0:0:4]} dxc4 {[%emt 0:0:5]} 7. Qc2 {[%emt 0:0:16]} a6 {[%emt 0:0:5]} 8. a4 {[%emt 0:0:7]} Bd7 {[%emt 0:0:13][%cal Bc8d7,Bd7c6,Bc6d5,Bd5e4,Be4d3][%mdl 32]} 9. Qxc4 {[%emt 0:0:7]} Bc6 {[%emt 0:0:6]} 10. Bg5 {[%emt 0:0:10]} Bd5 {[%emt 0:0:17]} 11. Qc2 {[%emt 0:0:23]} Be4 {[%emt 0:0:18]} 12. Qc1 {[%emt 0:0:6]} Nc6 $1 {[%emt 0:0:48][%cal Bb8c6,Bc6b4,Bb4d3][%mdl 4] now scores much better than the old 12...h6.} 13. e3 {[%emt 0:1:7] E05: Open Catalan: 5 Nf3 Be7.} h6 {[%emt 0:1:0]} 14. Bxf6 {[%emt 0:1:1]} Bxf6 {[%emt 0:0:4]} 15. Nbd2 {[%emt 0:0:32]} Bd3 {[%emt 0:0:43] A strong pair of Bishops.} 16. Rd1 {[%emt 0:0:18]} Nb4 {[%emt 0:0:52]} 17. Qc3 {[%emt 0:1:20]} a5 {[%emt 0:0:6][%cal Oc7c5]} 18. Nb3 $146 {[%emt 0:0:4]} ({Predecessor:} 18. Nc4 Bxc4 19. Qxc4 c6 20. h4 Rc8 21. Rac1 Qe7 22. Nh2 h5 23. b3 b6 24. e4 {½-½ Chan,K (2274)-Eggleston,D (2345) Rilton Cup 52nd 2024 (4)} )Be4 {[%emt 0:2:31] The position is equal.} 19. Rdc1 {[%emt 0:36:13]} Nd3 {[%emt 0:21:14]} 20. Rd1 {[%emt 0:7:58]} Nb4 {[%emt 0:0:6]} 21. Rdc1 {[%emt 0:5:34]} Nd3 {[%emt 0:0:26]} 22. Rd1 {[%emt 0:29:39]} Nb4 {Weighted Error Value: White=0.11 (very precise) /Black=0.12 (very precise)   Inaccurate:     	White=3     	Black=1      OK:         	White=3     	Black=1      Best:        	---       	Black=1} 1/2-1/2

[Event "FIDE Candidates 2026"]
[White "Praggnanandhaa R"]
[Black "Bluebaum,Matthias"]
[Site "Agios Georgios Pegeia"]
[Round "11.4"]
[Annotator "TA"]
[Result "1/2-1/2"]
[Date "2026.04.11"]
[WhiteElo "2741"]
[BlackElo "2698"]
[PlyCount "83"]
[TimeControl "60"]

{[%evp 9,83,-2,0,0,0,0,0,-23,0,0,0,4,29,31,32,27,31,33,33,35,47,43,61,75,122,97,126,2,0,3,66,65,59,58,54,59,62,59,58,59,67,67,79,56,93,59,58,55,57,21,33,11,92,92,129,124,112,59,472,0,0,0,0,0,0,0,0,0,0,0,0,0,0,0,0,0]} 1. e4 {[%emt 0:0:27]} e5 {[%emt 0:0:8]} 2. Nf3 {[%emt 0:0:9]} Nf6 {[%emt 0:0:6]} 3. Nxe5 {[%emt 0:0:7]} d6 {[%emt 0:0:5]} 4. Nd3 {[%emt 0:0:7]} Nxe4 {[%emt 0:0:4]} 5. Nc3 {[%emt 0:0:5]} Nf6 {[%emt 0:0:28]} 6. Nf4 {[%emt 0:0:8] C42: Petroff Defence: 3 Nxe5 and unusual White 3rd moves.} d5 {[%emt 0:0:14]} 7. d4 {[%emt 0:0:7]} Be7 {[%emt 0:0:54]} 8. Qf3 $146 {[%emt 0:0:32]} ({Predecessor:} 8. Be3 c6 9. Bd3 Na6 10. a3 Nc7 11. f3 c5 12. b3 b6 13. O-O O-O 14. Qd2 {½-½ Dzagnidze,N (2510)-Tan,Z (2513) Candidates (Women) 2019 (1)} )c6 {[%emt 0:10:16]} 9. Bd3 {[%emt 0:0:31]} O-O {[%emt 0:0:29]} 10. h3 {[%emt 0:0:5]} Na6 {[%emt 0:7:34]} 11. Bxa6 {[%emt 0:9:32]} bxa6 {[%emt 0:0:34]} 12. Nd3 {[%emt 0:2:13]} a5 {[%emt 0:4:14]} 13. O-O {[%emt 0:3:50][%cal Bh1f1,Bf1e1,Be1e3][%mdl 32]} Ba6 {[%emt 0:4:23]} 14. Re1 {[%emt 0:5:26]} Re8 {[%emt 0:4:40]} 15. Bg5 {[%emt 0:5:10]} Qb6 {[%emt 0:14:39] Prevents Nc5} 16. Ne5 $1 {[%emt 0:10:0]} Rac8 {[%emt 0:7:41] [#]} (16... h6 $142 17. Na4 Qb5 18. Bxf6 Bxf6 )17. Re3 $1 $16 {[%emt 0:13:38] aiming for Rae1.} Qxd4 {[%emt 0:10:8]} 18. Rae1 {[%emt 0:2:26]} (18. Qf5 $16 h6 19. Rd1 )h6 $11 {[%emt 0:6:24]} 19. Nd7 {[%emt 0:21:21]} Nxd7 {[%emt 0:5:30]} (19... hxg5 $11 20. Rxe7 Rxe7 21. Rxe7 a4 )20. Rxe7 $14 {[%emt 0:1:8]} Rxe7 {[%emt 0:7:18]} 21. Rxe7 {[%emt 0:0:8]} Ne5 {[%emt 0:2:25]} 22. Qe3 {[%emt 0:0:26] The board is on fire.} Qb4 {[%emt 0:2:46]} 23. Qxe5 {[%emt 0:4:38]} hxg5 {[%emt 0:0:24]} 24. b3 {[%emt 0:1:7]} (24. Qxg5 $6 Qxb2 25. Rxa7 Bc4 $17 (25... Qxc3 26. Qf5 $11 )(25... Qxc2 26. Qf4 $11 ))Rf8 {[%emt 0:3:31]} 25. Rc7 {[%emt 0:4:32][%mdl 1024] White has compensation.} Qb6 {[%emt 0:3:39]} 26. Na4 $40 {[%emt 0:2:19][%cal Bc3a4,Ba4b6,Bb6d7,Bd7e5][%mdl 160] White is up to no good.} Qb5 {[%emt 0:1:47]} 27. Kh2 {[%emt 0:1:51] Active counter play!} Qb4 {[%emt 0:3:46]} 28. c3 {[%emt 0:8:41]} Qa3 {[%emt 0:0:24]} 29. Rxa7 {[%emt 0:3:11]} ({Much weaker is} 29. Qxg5 Bb5 $11 )Bb5 {[%emt 0:0:1]} 30. Nb6 {[%emt 0:3:16]} Qxa2 {[%emt 0:0:25]} (30... Qc5 $11 31. Rb7 Ba6 )31. Qe3 $16 {[%emt 0:3:7]} Qxb3 {[%emt 0:3:38]} 32. Nd7 {[%emt 0:0:20]} Rc8 {[%emt 0:0:3]} 33. Ne5 {[%emt 0:4:7]} Re8 $2 {[%emt 0:5:46][%mdl 8192]} (33... d4 $14 34. Qxd4 c5 )34. Qf3 $2 {[%emt 0:0:27]} d4 $1 $11 {[%emt 0:1:8] The position is equal.} 35. Nxf7 {[%emt 0:0:26] [#] Intending Qh5 and mate.} Rf8 $1 {[%emt 0:0:42] and ...Bc4 would now be decisive} 36. Nh6+ {[%emt 0:2:26]} gxh6 {[%emt 0:0:1]} 37. Qe4 {[%emt 0:0:7][%csl Ga7][%cal Re4h7]} Bd3 $1 {[%emt 0:0:5]} 38. Qe5 {[%emt 0:0:37]} Rf7 {[%emt 0:0:19]} 39. Ra8+ {[%emt 0:0:2]} Rf8 {[%emt 0:0:39]} 40. Ra7 {[%emt 0:0:0]} Rf7 {[%emt 0:0:0] Prevents Qg7+.} 41. Ra8+ {[%emt 0:4:14]} Rf8 {[%emt 0:0:53]} 42. Ra7 {[%emt 0:0:4] Weighted Error Value: White=0.19 (very precise) /Black=0.26 (precise)   Loses game:     	---       	Black=1      Missed win:     	White=1     	---        Mistake:       	White=1     	Black=3      Inaccurate:     	White=3     	Black=2      OK:         	White=13    	Black=4      Best:        	---       	Black=3      Strong:       	White=2     	Black=3} 1/2-1/2

[Event "FIDE Candidates 2026"]
[White "Sindarov,Javokhir"]
[Black "Nakamura,Hikaru"]
[Site "Agios Georgios Pegeia"]
[Round "12.1"]
[Annotator "TA"]
[Result "1/2-1/2"]
[Date "2026.04.12"]
[WhiteElo "2745"]
[BlackElo "2810"]
[PlyCount "66"]
[TimeControl "60"]

{[%evp 9,65,31,40,38,39,29,40,54,49,51,38,29,49,44,47,47,38,45,37,26,23,30,42,42,41,39,38,39,37,0,41,34,43,43,43,43,43,43,43,44,45,28,31,0,0,0,0,0,0,0,0,0,0,0,0,0,0,0]} 1. d4 {[%emt 0:0:2]} d5 {[%emt 0:0:17]} 2. c4 {[%emt 0:0:8]} e6 {[%emt 0:0:7]} 3. Nf3 {[%emt 0:0:5]} Nf6 {[%emt 0:0:9]} 4. Nc3 {[%emt 0:0:4]} h6 {[%emt 0:0:7]} 5. g3 {[%emt 0:0:5]} Be7 {[%emt 0:0:25]} 6. Bg2 {[%emt 0:0:7] D37: Queen's Gambit Declined: 5 Bf4.} O-O {[%emt 0:0:8]} 7. O-O {[%emt 0:0:4]} dxc4 {[%emt 0:0:8]} 8. Ne5 {[%emt 0:0:6] White is slightly better.} Nc6 {[%emt 0:0:4]} 9. Bxc6 {[%emt 0:0:7]} bxc6 {[%emt 0:0:4]} 10. Nxc6 {[%emt 0:0:6] A dynamic duo of knights.} Qe8 {[%emt 0:0:13]} 11. Nxe7+ {[%emt 0:0:5]} Qxe7 {[%emt 0:0:5]} 12. Qa4 {[%emt 0:0:4] White plays on the queen side and is better} a5 {[%emt 0:0:41]} 13. Qxc4 {[%emt 0:0:7]} Ba6 {[%emt 0:0:38]} 14. Qc5 {[%emt 0:0:4]} Qxc5 {[%emt 0:0:11]} 15. dxc5 {[%emt 0:0:4]} Rfd8 $146 {[%emt 0:0:17]} ({Predecessor:} 15... Nd5 16. Re1 Nxc3 17. bxc3 f6 18. f3 Kf7 19. Kf2 Rfd8 20. Be3 Bc4 21. a3 Rab8 {½-½ Firouzja,A (2757)-Liang,A (2684) Titled Tuesday intern op 04th Mar Late blitz 2025 (9)} )16. Re1 {[%emt 0:1:4]} Nd5 {[%emt 0:0:30]} 17. Nxd5 {[%emt 0:0:6]} Rxd5 {[%emt 0:0:9]} 18. Be3 {[%emt 0:0:10]} a4 {[%emt 0:0:18]} 19. f3 {[%emt 0:2:3]} f6 {[%emt 0:0:15]} 20. Kf2 {[%emt 0:0:8]} c6 {[%emt 0:1:33]} 21. Red1 {[%emt 0:1:37]} Bc4 {[%emt 0:5:0]} 22. Rd4 {[%emt 0:0:35]} Rxd4 {[%emt 0:0:36]} 23. Bxd4 $14 {[%emt 0:0:4][%mdl 4096] Endgame KRB-KRB. White is a pawn up.} Rd8 {[%emt 0:2:21]} 24. Bc3 {[%emt 0:0:12]} h5 {[%emt 0:8:41]} 25. Ke1 {[%emt 0:0:37]} e5 {[%emt 0:2:28]} 26. Rd1 {[%emt 0:0:8]} Rxd1+ {[%emt 0:0:4] The position is equal.} 27. Kxd1 {[%emt 0:0:4]} Bxa2 $11 {[%emt 0:0:3] KB-KB} 28. e4 {[%emt 0:0:8]} Bb3+ {[%emt 0:0:12]} 29. Kd2 {[%emt 0:0:5]} Bc4 {[%emt 0:0:3]} 30. Ba5 {[%emt 0:0:7]} Bb3 {[%emt 0:0:7]} 31. Bc3 {[%emt 0:0:5]} Bc4 {[%emt 0:0:2]} 32. Ba5 {[%emt 0:0:8]} Bb3 {[%emt 0:0:3]} 33. Bc3 {[%emt 0:0:8]} Bc4 {[%emt 0:0:2] Weighted Error Value: White=0.04 (flawless) /Black=0.04 (flawless)   Inaccurate:     	White=2     	Black=1      OK:         	White=9     	Black=9} 1/2-1/2

[Event "FIDE Candidates 2026"]
[White "Wei,Yi"]
[Black "Giri,Anish"]
[Site "Agios Georgios Pegeia"]
[Round "12.2"]
[Annotator "TA"]
[Result "1/2-1/2"]
[Date "2026.04.12"]
[WhiteElo "2754"]
[BlackElo "2753"]
[PlyCount "153"]
[TimeControl "60"]

{[%evp 9,152,-84,0,-4,-5,-12,-14,-17,-36,-24,0,0,-13,-26,-12,-8,0,0,-3,0,-11,-3,15,-25,-29,-25,-25,-21,-20,-45,-51,-96,-86,-87,-55,-77,-36,-36,-38,-54,-47,-47,0,-24,-25,-30,-33,-25,-25,-27,-6,-35,-34,-161,-161,-161,-108,-108,-108,-116,-116,-116,-116,-116,-114,-108,-104,-148,-131,-130,-130,-118,-123,-123,-123,-139,-139,-162,-101,-96,-46,-52,-57,-116,-110,-137,-142,-163,-163,-163,-163,-163,-163,-163,-126,-157,-136,-178,-166,-215,-215,-215,-215,-307,-307,-306,-306,-306,-306,-306,0,-276,-276,-276,-276,-276,-276,-276,-255,-204,-196,-196,-195,-170,-137,-162,-141,-141,-141,-141,-140,-131,-93,-103,-93,-133,-122,-135,-93,-93,0,-112,-113,-103,0]} 1. e4 {[%emt 0:0:5]} e5 {[%emt 0:0:3]} 2. Nc3 {[%emt 0:0:17]} Nf6 {[%emt 0:0:6]} 3. Bc4 {[%emt 0:0:3]} Bc5 {[%emt 0:0:16]} 4. d3 {[%emt 0:0:31]} O-O {[%emt 0:0:18]} 5. f4 {[%emt 0:0:34] [#]} exf4 {[%emt 0:0:18]} (5... d5 $1 $17 {[%cal Rd5c4]} 6. Nxd5 Be6 )6. Bxf4 $11 {[%emt 0:0:18] C27: Vienna Game: 2...Nf6 3 Bc4 Nxe4.} c6 {[%emt 0:0:11]} 7. d4 {[%emt 0:0:51]} Bb4 {[%emt 0:1:5]} 8. Nge2 {[%emt 0:1:8]} Nxe4 {[%emt 0:2:39]} 9. O-O {[%emt 0:0:30]} d5 {[%emt 0:0:48] [#]} 10. Nxe4 {[%emt 0:0:15][%cal Oc2c3] White sacrificed a pawn} dxc4 {[%emt 0:0:37]} 11. c3 {[%emt 0:1:2]} Be7 {[%emt 0:0:55]} 12. N2g3 {[%emt 0:0:11]} Na6 $146 {[%emt 0:10:0][%cal Bb8a6,Ba6c7,Bc7d5][%mdl 32]} ({Predecessor:} 12... Be6 13. Qf3 Qd5 14. Rae1 Nd7 15. Nh5 Qf5 16. Nhg3 Qd5 17. Nh5 Qf5 {½-½ Eberl,H (2321)-Douglas,S (2391) WS MN/045 email 2009} )13. Qe2 {[%emt 0:20:30][%cal Og3h5]} Nc7 {[%emt 0:0:29]} 14. Qxc4 {[%emt 0:2:19]} Nd5 {[%emt 0:0:31]} 15. Bd2 {[%emt 0:3:54]} a5 {[%emt 0:0:43]} 16. Nf5 {[%emt 0:8:20]} Bxf5 {[%emt 0:4:32]} 17. Rxf5 {[%emt 0:0:31]} g6 {[%emt 0:1:18]} 18. Rf3 {[%emt 0:4:18]} f5 {[%emt 0:1:47]} 19. Nc5 {[%emt 0:20:36]} b5 {[%emt 0:2:52]} 20. Qf1 {[%emt 0:3:50]} Bxc5 {[%emt 0:4:57]} 21. dxc5 {[%emt 0:0:4]} a4 {[%emt 0:23:16]} 22. c4 {[%emt 0:4:1]} bxc4 {[%emt 0:0:38]} 23. Qxc4 {[%emt 0:0:6]} Re8 {[%emt 0:0:18]} 24. Re3 {[%emt 0:10:43] Inhibits Re4.} Rxe3 {[%emt 0:4:34]} 25. Bxe3 {[%emt 0:0:22]} Rb8 {[%emt 0:0:55]} (25... Qe7 $15 26. Re1 Qe5 )26. Bh6 {[%emt 0:20:18]} Qf6 {[%emt 0:20:12]} 27. Rd1 {[%emt 0:0:39]} g5 {[%emt 0:6:36]} 28. Rxd5 {[%emt 0:5:2]} cxd5 {[%emt 0:0:6]} 29. Qxd5+ $15 {[%emt 0:0:2][%mdl 4096] Endgame KQR-KQB} Qf7 {[%emt 0:2:15]} 30. Qd2 {[%emt 0:2:46]} f4 {[%emt 0:4:7]} 31. c6 {[%emt 0:0:2]} ({White should play} 31. h4 $15 )Qa7+ $19 {[%emt 0:3:33]} 32. Kh1 {[%emt 0:0:4]} Qc5 {[%emt 0:12:33]} ({Black should play} 32... Qe3 $19 33. Qd5+ Kh8 )33. c7 $17 {[%emt 0:0:14]} Re8 {[%emt 0:0:14]} 34. h3 {[%emt 0:0:17]} Qxc7 {[%emt 0:0:21] and ...Qe5 should not be overlooked} 35. Bxg5 {[%emt 0:0:58]} f3 {[%emt 0:0:54]} 36. gxf3 {[%emt 0:0:0]} Qc4 {[%emt 0:0:32]} 37. Kg1 {[%emt 0:1:40] Inhibits Qf1+.} Qxa2 {[%emt 0:0:0]} 38. Kf2 {[%emt 0:0:0]} Qe6 {[%emt 0:0:0] Against Bf6} 39. h4 {[%emt 0:2:16]} Rb8 {[%emt 0:2:4]} 40. Bf4 {[%emt 0:0:0] Against Qe5} Qb6+ {[%emt 0:0:0]} 41. Kg3 {[%emt 0:2:38]} Rd8 {[%emt 0:2:43] Inhibits Qd5+.} 42. Qe2 {[%emt 0:0:41]} Qc6 {[%emt 0:4:52] Repels Qc4+} 43. h5 {[%emt 0:3:24]} Kf7 {[%emt 0:0:29]} (43... Rd5 $19 44. Qe4 Rc5 )44. Qe5 {[%emt 0:4:31]} Qd5 {[%emt 0:8:13]} (44... h6 $17 45. Qa5 Rg8+ 46. Kf2 Rf8 )45. Qc7+ $15 {[%emt 0:0:27]} Rd7 {[%emt 0:0:7]} 46. Qc2 {[%emt 0:0:4]} (46. Qc8 $15 )Qxh5 $17 {[%emt 0:1:23]} 47. Qc4+ {[%emt 0:1:25]} Kf8 {[%emt 0:2:22]} 48. Qb4+ {[%emt 0:0:24]} Kg8 {[%emt 0:0:30]} 49. Qc4+ {[%emt 0:1:50]} Rf7 {[%emt 0:9:30]} 50. Qc8+ {[%emt 0:0:8]} Rf8 {[%emt 0:0:2]} 51. Qc4+ {[%emt 0:0:5]} Qf7 {[%emt 0:0:3]} 52. Qxa4 {[%emt 0:0:9]} Qg6+ {[%emt 0:1:18]} 53. Kh2 {[%emt 0:11:9]} h6 {[%emt 0:2:45]} 54. Qb3+ {[%emt 0:6:12]} (54. Qb4 $142 )Kh7 $19 {[%emt 0:0:6]} 55. Bg3 {[%emt 0:0:40]} Rg8 {[%emt 0:1:3]} 56. Qb7+ {[%emt 0:0:26]} (56. f4 $142 )Rg7 {[%emt 0:0:2]} 57. Qb8 {[%emt 0:1:34] Inhibits Qxg3+.} Qc2+ {[%emt 0:1:58]} 58. Kh3 {[%emt 0:0:5]} Qf5+ {[%emt 0:1:19]} 59. Kg2 {[%emt 0:0:44]} Qc2+ {[%emt 0:2:40]} 60. Kh3 {[%emt 0:0:1]} Qd1 {[%emt 0:0:13]} 61. Qf4 {[%emt 0:0:37]} Qh1+ {[%emt 0:0:7]} 62. Bh2 {[%emt 0:0:3]} Qf1+ {[%emt 0:1:19]} 63. Kh4 {[%emt 0:0:3]} Qe1+ {[%emt 0:0:33]} 64. Bg3 {[%emt 0:0:28]} Qh1+ {[%emt 0:0:33]} 65. Bh2 {[%emt 0:0:1]} Qb1 {[%emt 0:0:6]} 66. Bg3 {[%emt 0:2:54]} Re7 {[%emt 0:0:5]} 67. b4 {[%emt 0:1:7]} Qh1+ {[%emt 0:1:1]} 68. Bh2 {[%emt 0:0:2]} Qe1+ {[%emt 0:0:11]} 69. Bg3 {[%emt 0:0:16]} Qb1 {[%emt 0:0:48]} 70. Kh3 {[%emt 0:0:56]} Qf1+ {[%emt 0:0:17]} 71. Kh4 {[%emt 0:0:4]} Qb5 {[%emt 0:1:7]} 72. Kh3 {[%emt 0:1:34]} Qd5 {[%emt 0:0:4]} 73. Kg2 {[%emt 0:0:31]} Re2+ {[%emt 0:0:8]} 74. Bf2 {[%emt 0:0:15]} Re7 {[%emt 0:1:12]} 75. Bg3 $1 {[%emt 0:1:7]} Qa2+ {[%emt 0:0:28]} 76. Kh3 {[%emt 0:0:10]} Qd5 {[%emt 0:0:6] Against Qf5+} 77. Kg2 $1 {[%emt 0:0:43] Weighted Error Value: White=0.16 (very precise) /Black=0.16 (very precise)   Mistake:       	White=4     	Black=4      Inaccurate:     	White=6     	Black=4      OK:         	White=3     	Black=3      Best:        	White=2     	---        Strong:       	White=2     	---} 1/2-1/2